Cogmind - Beta 13 X1 @@@ ROGUE MODE // 2023.10.28 @ 17:55:40 Player: Plexion Result: Self-destructed Performance ------------- Evolutions (1) 500 Regions Visited (5) 1000 Robots Destroyed (76) 380 Value Destroyed (2039) 2039 Prototype IDs (7) 140 Alien Tech Used (0) 0 Bonus (117) 117 TOTAL SCORE: 4176 Bonus ------- High Alert Combat Kills 117 Cogmind --------- Core Integrity 75/400 Matter 14/300 Energy 100/100 System Corruption 2% Temperature Cool (0) Movement Treading (160) Location -9/Exiles Parts ------- > --- POWER (1) -------- (None) > --- PROPULSION (3) --- Light Treads Light Treads Light Treads > --- UTILITY (3) ------ High-capacity Storage Unit Improved Targeting Computer Hardened Light Armor Plating > --- WEAPON (2) ------- Heavy Assault Rifle Minigun > --- INVENTORY (20) --- Actuator Array Improved Utility Shielding Light Armor Plating Light Armor Plating Light Armor Plating Heavy Assault Rifle Heavy Assault Rifle Rocket Launcher Missile Launcher Flail Peak State ------------ > --- POWER ------------ Improved Ion Engine > --- PROPULSION ------- Light Treads Light Treads Improved Treads > --- UTILITY ---------- High-capacity Storage Unit Light Armor Plating Hardened Light Armor Plating > --- WEAPON ----------- Heavy Assault Rifle Missile Launcher > --- INVENTORY -------- Light Treads Light Treads Improved Targeting Computer Actuator Array Improved Utility Shielding Light Armor Plating Light Armor Plating Heavy Assault Rifle Heavy Assault Rifle Minigun Rocket Launcher Plasma Cutter Plasma Cutter Plasma Cutter Plasma Cutter Flail [Rating: 18] Favorites ----------- Power Improved Ion Engine Engine Improved Ion Engine Power Core Light Nuclear Core Propulsion Light Treads Treads Light Treads Leg Aluminum Leg Utility High-capacity Storage Unit Device Structural Scanner Storage High-capacity Storage Unit Processor Improved Targeting Computer Protection Core Shielding Weapon Heavy Assault Rifle Ballistic Gun Heavy Assault Rifle Launcher Missile Launcher Special Weapon Plasma Cutter Impact Weapon Flail Special Melee Weapon Improved Datajack Build | -11 -10 -10 -9 -9 -9 ------- Run | Jun Mat Min Mat Min Exi Slots Evolved 2 | . . . 2 . . Power . | . . . . . . Propulsion 1 | . . . 1 . . Utility 1 | . . . 1 . . Weapon . | . . . . . . Parts Attached 75 | 6 5 9 33 8 14 Power 7 | 1 . 2 4 . . Engine 6 | 1 . 1 4 . . Core 1 | . . 1 . . . Reactor . | . . . . . . Propulsion 24 | 2 2 1 15 2 2 Treads 23 | 2 2 1 14 2 2 Leg 1 | . . . 1 . . Wheel . | . . . . . . Hover . | . . . . . . Flight . | . . . . . . Utility 15 | 1 2 1 7 2 2 Device 2 | . 1 . 1 . . Storage 2 | 1 1 . . . . Processor 1 | . . . . . 1 Hackware . | . . . . . . Protection 10 | . . 1 6 2 1 Artifact . | . . . . . . Weapon 29 | 2 1 5 7 4 10 Energy Gun . | . . . . . . Energy Cannon . | . . . . . . Ballistic Gun 16 | 2 1 3 6 1 3 Ballistic Cannon . | . . . . . . Launcher 6 | . . 1 1 2 2 Special Weapon 4 | . . . . . 4 Impact Weapon 2 | . . . . 1 1 Slashing Weapon . | . . . . . . Piercing Weapon . | . . . . . . Special Melee Weapon 1 | . . 1 . . . Unidentified Prototypes . | . . . . . . Corrupted Parts 1 | . . 1 . . . System Corruption 2 | . . 2 . . . Parts Lost 20 | . . 5 4 4 7 Power 3 | . . 1 1 . 1 Propulsion 7 | . . 1 2 2 2 Utility 3 | . . 1 . 2 . Weapon 7 | . . 2 1 . 4 Highest Loss Streak 7 | . . 2 2 4 7 To Critical Strikes 2 | . . . . . 2 Average Slot Usage (%) 97 | . 96 99 97 99 88 Engine 8 | . 14 2 10 11 9 Core 3 | . . 11 . . . Treads 30 | . 28 27 31 33 32 Device 2 | . 10 . . . . Storage 12 | . 14 14 11 11 11 Protection 15 | . . 13 21 21 20 Ballistic Gun 22 | . 28 27 21 19 1 Naked Turns . | . . . . . . Heaviest Build 64 | 11 47 53 57 64 64 Greatest Support 63 | 40 40 40 63 63 63 Greatest Overweight (x) 1 | . 1 1 1 1 1 Average Overweight (x) . | . . 1 . . . Largest Inventory Capacity 20 | 8 20 20 20 20 20 Average Capacity 18 | 6 14 20 20 20 20 Most Carried 20 | 2 13 20 20 20 20 Average Carried 15 | 1 8 16 17 18 16 Final Capacity 20 | 8 20 20 20 20 20 Final Carried 20 | 2 13 15 20 16 10 Class Distribution -------------------- 57% | Mutant 42% | Scavenger-Mutant Dominant Class ---------------- Mutant | -10/Materials Mutant | -10/Mines Scavenger-Mutant | -9/Materials Scavenger-Mutant | -9/Mines Scavenger-Mutant | -9/Exiles Resources | -11 -10 -10 -9 -9 -9 ----------- Run | Jun Mat Min Mat Min Exi Matter Collected 1871 | 248 253 229 947 194 . Remotely . | . . . . . . Salvage Created 2710 | . 503 505 1505 186 11 Parts 164 | . 38 19 100 7 . Haulers Intercepted 6 | . 2 . 4 . . Recyclers Shooed 1 | . . . 1 . . Parts Field Recycled . | . . . . . . Retrieved Matter . | . . . . . . Parts Self-Destructed . | . . . . . . Prevented . | . . . . . . Kills | -11 -10 -10 -9 -9 -9 ------- Run | Jun Mat Min Mat Min Exi Combat Hostiles Destroyed 71 | . 14 13 30 10 4 Guns 61 | . 14 13 30 4 . AOE 10 | . . . . 6 4 Classes Destroyed 11 | . 4 1 4 2 . Worker 1 | . . . 1 . . Builder 2 | . 2 . . . . Tunneler 3 | . . 1 1 1 . Hauler 6 | . 2 . 4 . . Operator 1 | . . . 1 . . Watcher 2 | . . . 2 . . Swarmer 15 | . 8 . 7 . . Grunt 34 | . 6 13 13 2 . Sentry 10 | . . . 10 . . Demolisher 2 | . . . . 2 . Assembled 10 | . . . . 6 4 Best Kill Streak 7 | . 3 5 7 4 4 Combat Bots Only 6 | . 3 5 6 4 4 Max Kills in Single Turn 4 | . 2 1 2 1 4 Gunslinging . | . . . . . . Exploded 4 | . . . . 1 4 Melee . | . . . . . . Uniques/NPCs Destroyed . | . . . . . . Combat | -11 -10 -10 -9 -9 -9 -------- Run | Jun Mat Min Mat Min Exi Damage Taken 4044 | . 419 768 1341 741 775 Core 501 | . 78 98 88 105 132 Absorbed by Shields . | . . . . . . Redirected to Shielding 56 | . . 21 18 17 . Regen/Repaired (Parts) 9 | . . . 9 . . Core Remaining (%) 64 | 100 . 29 . . . Volleys Fired 265 | . 49 50 117 23 26 Largest 2 | . 2 2 2 2 2 Hottest 48 | . 40 40 46 46 48 Shots Fired 504 | . 98 95 233 37 41 Gun 474 | . 98 95 232 28 21 Cannon . | . . . . . . Launcher 11 | . . . 1 9 1 Special 19 | . . . . . 19 Kinetic 474 | . 98 95 232 28 21 Thermal . | . . . . . . Explosive 11 | . . . 1 9 1 Electromagnetic . | . . . . . . Impact 19 | . . . . . 19 Robot Hit Streak 23 | . 10 23 16 14 15 Robot Miss Streak 5 | . 4 2 5 2 3 Penetration Max . | . . . . . . Secondary Targets 6 | . 1 1 4 . . Max Gunslinging Chain 1 | . 1 1 1 . . Shots Hit Robots 348 | . 61 74 163 23 27 Core Hits 146 | . 28 28 66 16 8 Critical Kills 1 | . . . 1 . . Critical Parts Destroyed 1 | . . . 1 . . Critical Strikes 5 | . . . 2 . 3 Destroy 2 | . . . 2 . . Sever 3 | . . . . . 3 Melee Attacks 1 | . . . . . 1 Impact 1 | . . . . . 1 Slashing . | . . . . . . Piercing . | . . . . . . Sneak Attacks . | . . . . . . Combat Hostiles . | . . . . . . Follow-up Attacks . | . . . . . . Damage Inflicted 5365 | . 711 753 2501 824 576 Guns 4464 | . 707 731 2462 320 244 Cannons . | . . . . . . Explosions 679 | . . . 24 479 176 Melee . | . . . . . . Ramming 85 | . 4 22 15 25 19 Kinetic 4464 | . 707 731 2462 320 244 Thermal . | . . . . . . Explosive 679 | . . . 24 479 176 Electromagnetic . | . . . . . . Impact 137 | . . . . . 137 Slashing . | . . . . . . Piercing . | . . . . . . Highest Corruption 3 | . . 3 2 2 2 Average Corruption 1 | . . 1 1 2 2 Corruption Purged . | . . . . . . Corruption Blocked . | . . . . . . Effects 38 | . . 9 8 14 7 Message Errors 6 | . . . 1 3 2 Matter Fused 9 | . . 2 1 4 2 Heat Flow Errors 9 | . . 2 3 4 . Energy Discharges 5 | . . . 1 1 3 Parts Fused 1 | . . 1 . . . Data Loss (minor) 3 | . . 1 1 1 . Data Loss (major) 3 | . . 2 . 1 . Misfires 1 | . . . 1 . . Weapon Failures 1 | . . 1 . . . Overload Shots . | . . . . . . Overflow Damage 39 | . . . . 39 . Projectiles . | . . . . . . Explosions 39 | . . . . 39 . Melee . | . . . . . . Knockbacks 2 | . . . . . 2 Impact 2 | . . . . . 2 Kinetic . | . . . . . . Secondary . | . . . . . . Self-Inflicted Damage . | . . . . . . Shots . | . . . . . . Rammed 15 | . 1 6 4 . 4 Targets Rammed 18 | . 2 7 4 1 4 Kicked . | . . . . . . Crushed 3 | . 1 1 . 1 . Highest Temperature 281 | . 12 168 232 281 8 Average Temperature 41 | . 7 24 30 77 2 Received Heat Transfer 1101 | . 96 375 537 93 . Siege Activations . | . . . . . . Robots Corrupted . | . . . . . . Combat Hostiles . | . . . . . . Parts Fried . | . . . . . . Impact Corruptions . | . . . . . . Robots Melted . | . . . . . . Combat Hostiles . | . . . . . . Parts Melted . | . . . . . . Heat Transferred . | . . . . . . Parts Sabotaged . | . . . . . . Parts Stolen . | . . . . . . Parts Stripped . | . . . . . . Power Chain Reactions . | . . . . . . Missiles Intercepted . | . . . . . . Alert | -11 -10 -10 -9 -9 -9 ------- Run | Jun Mat Min Mat Min Exi Peak Influence 705 | . 335 165 705 302 . Initial 252 | . . 35 64 252 . Average 168 | . 141 33 311 176 . Maximum Alert Level 3 | . 1 . 3 1 . Low Security (%) 62 | 100 61 100 29 59 . Level 1 27 | . 38 . 40 40 . Level 2 9 | . . . 28 . . Level 3 . | . . . 2 . . Level 4 . | . . . . . . Level 5 . | . . . . . . High Security . | . . . . . . Max Security . | . . . . . . Squads Dispatched 5 | . 2 . 3 . . Investigation 1 | . . . 1 . . Extermination . | . . . . . . Reinforcement 4 | . 2 . 2 . . Assault . | . . . . . . Garrison . | . . . . . . Intercept . | . . . . . . Searches Triggered . | . . . . . . Construction Impeded . | . . . . . . Haulers Reinforced . | . . . . . . Active Scanning Responses . | . . . . . . Cargo Convoy Interrupts . | . . . . . . Stealth | -11 -10 -10 -9 -9 -9 --------- Run | Jun Mat Min Mat Min Exi Distress Signals 8 | . 2 2 4 . . Communications Jammed . | . . . . . . Distress Signals . | . . . . . . Times Spotted 102 | . 23 17 47 10 5 Peak Tracking Total 9 | . 4 5 8 4 9 Tactical Retreats 5 | . . 1 3 1 . Traps | -11 -10 -10 -9 -9 -9 ------- Run | Jun Mat Min Mat Min Exi Traps Triggered 4 | . . 1 3 . . Indirectly . | . . . . . . Trap Hack Attempts 14 | . . 14 . . . Triggered . | . . . . . . Disarmed . | . . . . . . Reprogrammed 2 | . . 2 . . . Reused . | . . . . . . Traps Extracted . | . . . . . . Installed . | . . . . . . Triggered . | . . . . . . Machines | -11 -10 -10 -9 -9 -9 ---------- Run | Jun Mat Min Mat Min Exi Machines Disabled 7 | . 1 . 1 . 5 Max in Single Turn 2 | . 1 . 1 . 2 Machines Repaired . | . . . . . . Machines Sabotaged . | . . . . . . Overloaded Fab Kills . | . . . . . . Hacking | -11 -10 -10 -9 -9 -9 --------- Run | Jun Mat Min Mat Min Exi Machines Accessed 17 | . 5 1 10 . 1 Terminals 13 | . 5 . 8 . . Fabricators . | . . . . . . Repair Stations 1 | . . . 1 . . Recycling Units 1 | . . . 1 . . Scanalyzers . | . . . . . . Garrison Access . | . . . . . . Total Hacks 53 | . 15 1 36 . 1 Successful 30 | . 5 1 23 . 1 Failed 22 | . 10 . 12 . . Catastrophic 1 | . . . 1 . . Database Lockouts 1 | . . . 1 . . Manual 43 | . 12 . 31 . . Terminals 42 | . 15 . 27 . . Fabricators . | . . . . . . Repair Stations 4 | . . . 4 . . Recycling Units 5 | . . . 5 . . Scanalyzers . | . . . . . . Garrison Access . | . . . . . . Terminal Hacks 18 | . 4 1 12 . 1 Record 1 | . . . . . 1 Robot Analysis 6 | . 4 . 2 . . Prototype ID Bank 4 | . . . 4 . . Open Door 1 | . . 1 . . . Terminal Index 1 | . . . 1 . . Locate Traps 1 | . . . 1 . . Hauler Manifests 1 | . . . 1 . . Zone Layout 3 | . . . 3 . . Fabricator Hacks . | . . . . . . Repair Station Hacks 2 | . . . 2 . . Scan Component 1 | . . . 1 . . Repair 1 | . . . 1 . . Recycling Unit Hacks . | . . . . . . Scanalyzer . | . . . . . . Garrison Access Hacks . | . . . . . . Unauthorized Hacks 10 | . 1 . 9 . . Terminals 7 | . 1 . 6 . . Botnet 2 | . . . 2 . . Disrupt 3 | . . . 3 . . Operators 2 | . 1 . 1 . . Fabricators . | . . . . . . Repair Stations . | . . . . . . Recycling Units 3 | . . . 3 . . Reject 1 | . . . 1 . . Recyclers 1 | . . . 1 . . Mask 1 | . . . 1 . . Scanalyzers . | . . . . . . Garrison Access . | . . . . . . Data Cores Recovered . | . . . . . . Used . | . . . . . . Hacking Detections 11 | . 5 . 6 . . Full Trace Events 1 | . . . 1 . . Feedback Events . | . . . . . . Feedback Blocked . | . . . . . . Robot Schematics Acquired . | . . . . . . Robots Built . | . . . . . . Authchips . | . . . . . . Time . | . . . . . . Total Robot Build Rating . | . . . . . . Part Schematics Acquired . | . . . . . . Parts Built . | . . . . . . Authchips . | . . . . . . Time . | . . . . . . Total Part Build Rating . | . . . . . . Parts Repaired 1 | . . . 1 . . Time 53 | . . . 53 . . Parts Recycled . | . . . . . . Recycled Matter . | . . . . . . Retrieved Matter . | . . . . . . Retrieved Components . | . . . . . . Parts Scanalyzed . | . . . . . . Part Schematics Acquired . | . . . . . . Parts Damaged . | . . . . . . Bothacking | -11 -10 -10 -9 -9 -9 ------------ Run | Jun Mat Min Mat Min Exi Used RIF Installer . | . . . . . . Robots Hacked . | . . . . . . Non-combat . | . . . . . . Combat . | . . . . . . Robot Hacks Applied . | . . . . . . Relay Couplers Released . | . . . . . . Fabnet Peak Effective % . | . . . . . . Robots Rewired . | . . . . . . Allies Hacked . | . . . . . . Hacks Repelled . | . . . . . . Allies | -11 -10 -10 -9 -9 -9 -------- Run | Jun Mat Min Mat Min Exi Total Allies . | . . . . . . Largest Group . | . . . . . . Highest-Rated Group . | . . . . . . Highest-Rated Ally . | . . . . . . Total Orders . | . . . . . . Ally Attacks . | . . . . . . Total Damage . | . . . . . . Kills . | . . . . . . Allies Corrupted . | . . . . . . Allies Melted . | . . . . . . Intel | -11 -10 -10 -9 -9 -9 ------- Run | Jun Mat Min Mat Min Exi Robot Analysis Total 6 | . 4 . 2 . . Derelict Logs Recovered 1 | . . . . 1 . Drone Launches . | . . . . . . Drone Recoveries . | . . . . . . Exploration | -11 -10 -10 -9 -9 -9 ------------- Run | Jun Mat Min Mat Min Exi Turns Passed 7053 | 68 1298 1912 2076 978 721 Spaces Moved 2873 | 43 577 453 935 516 349 Core 10 | 10 . . . . . Treads 2863 | 33 577 453 935 516 349 Legs . | . . . . . . Wheels . | . . . . . . Hover . | . . . . . . Flight . | . . . . . . Fastest Speed 50 | 50 160 240 160 160 160 Average Speed 184 | 134 195 240 166 174 160 Slowest Speed 240 | 160 240 240 240 240 240 Overloaded Moves . | . . . . . . Propulsion Burnouts . | . . . . . . Robots Hopped . | . . . . . . Cave-ins Triggered . | . . . . . . Exploration Rate (%) 69 | 4 92 75 93 97 55 Regions Visited 5 Branch Regions 3 Pre-discovered Areas 3 | . . . . 2 1 Known Exits Taken . | . . . . . . Unknown Exits Taken 5 | 1 1 1 1 1 . Scrap Searched 2 | . . 1 . 1 . Spaces Dug 21 | . . . 9 7 5 Terrain Destroyed 97 | . . . 9 83 5 Melee . | . . . . . . Projectile . | . . . . . . AOE 97 | . . . 9 83 5 Terrain Rammed . | . . . . . . Walls Destroyed . | . . . . . . Machines Disabled . | . . . . . . Actions | -11 -10 -10 -9 -9 -9 --------- Run | Jun Mat Min Mat Min Exi Total 4125 | 50 657 1186 1234 554 444 Wait 804 | . 16 644 96 7 41 Move 2868 | 42 576 452 934 515 349 Hop . | . . . . . . Pick Up 40 | 2 8 7 19 . 4 Fast Attach 12 | 6 1 1 4 . . Attach 21 | . . 5 5 4 7 Detach 3 | . . 1 1 . 1 Swap 42 | . 4 3 24 4 7 Drop 37 | . 1 2 30 . 4 Fire 265 | . 49 50 117 23 26 Melee 1 | . . . . . 1 Ram . | . . . . . . Kick . | . . . . . . Crush 18 | . 2 7 4 1 4 Escape Stasis . | . . . . . . Rewire . | . . . . . . Trap 14 | . . 14 . . . Miscellaneous . | . . . . . . Route ------- -11/Junkyard -10/Materials (discovered 4 exits: *Mat x3 / *Min) -10/Mines (discovered 2 exits: *Mat / [*Sub]) -9/Materials (discovered 5 exits: [*Mat x3] / [*Min x2]) -9/Mines (discovered 3 exits: [*Mat x2] / *Exi) -9/Exiles (discovered 1 exit: [*Min]) History --------- Turn | Location | Event 3 | -11/Junkyard | Discovered new exit (range 16) 69 | -11/Junkyard | Entered Materials 246 | -10/Materials | Discovered new exit (range 4) 317 | -10/Materials | Build established: Mutant 383 | -10/Materials | Discovered new exit (range 16) 516 | -10/Materials | Discovered new exit (range 16) 970 | -10/Materials | Discovered new exit (range 6) 1367 | -10/Materials | Entered Mines 1660 | -10/Mines | Discovered new exit (range 14) 2056 | -10/Mines | Discovered new exit (range 10) 2126 | -10/Mines | Met a Derelict who couldn't figure out how to use a Trap Extractor 2304 | -10/Mines | Excavation squad dispatched 2304 | -10/Mines | A large section of the Mines collapsed 2554 | -10/Mines | Excavation squad dispatched 2804 | -10/Mines | Excavation squad dispatched 3127 | -10/Mines | Core integrity fell below 50% 3279 | -10/Mines | Entered Materials 3279 | -9/Materials | Evolved 2 slots: Propulsion x1, Utility x1 3543 | -9/Materials | Repaired Corrupted Melee Analysis Suite 3560 | -9/Materials | Discovered new exit (range 6) 3647 | -9/Materials | Discovered new exit (range 5) 4046 | -9/Materials | Discovered new exit (range 15) 4150 | -9/Materials | Build established: Scavenger-Mutant 4206 | -9/Materials | Discovered new exit (range 13) 4335 | -9/Materials | Central database locked down 5302 | -9/Materials | Discovered new exit (range 9) 5355 | -9/Materials | Entered Mines 5455 | -9/Mines | Discovered new exit (range 9) 5724 | -9/Mines | Assembled infested the area 5776 | -9/Mines | Learned location of Storage (-8) 5883 | -9/Mines | Lost 4 parts (2n2u) 6012 | -9/Mines | Discovered new exit (range 5) 6322 | -9/Mines | Deemed a non-threat by the Exiles lab entrance 6322 | -9/Mines | Discovered new exit (range 5) 6333 | -9/Mines | Entered Exiles 6374 | -9/Exiles | Met 8R-AWN 6398 | -9/Exiles | Met EX-HEX 6459 | -9/Exiles | Met EX-DEC 6488 | -9/Exiles | Learned location of Zion (-6) 6734 | -9/Exiles | Discovered new exit (range 15) 6864 | -9/Exiles | Attacked by the Exiles 6962 | -9/Exiles | Core integrity fell below 50% 7052 | -9/Exiles | Core integrity fell below 20% 7054 | -9/Exiles | Lost 7 parts (1p2n4w) 7054 | -9/Exiles | Self-destructed Last Messages --------------- 07010_ 8R-AWN Prototype Leg severed. 07013_ Penetrated by HV Slug. 07013_ Plasma Cutter destroyed. 07020_ Penetrated by HV Slug. 07020_ Critical hit (Destroy). 07023_ Penetrated by HV Slug. 07023_ Critical hit (Destroy). 07023_ Imp. Treads destroyed. 07027_ Penetrated by HV Slug. 07034_ HV Slug penetrates Wall. 07041_ Penetrated by HV Slug. 07044_ Slammed into 8R-AWN. 07044_ HV Slug penetrates Machine. 07044_ HV Slug penetrates Wall. 07046_ Slammed into 8R-AWN. 07048_ Penetrated by HV Slug. 07048_ HV Slug penetrates Machine. 07049_ Slammed into 8R-AWN. 07051_ Penetrated by HV Slug. 07051_ HV Slug penetrates Wall. Map ----- +----------------------------------------------------+ | ?????????????????????????????????????????????????? | | ?????????????????????????????????????????????????? | | ?????????????????????????????????????????????????? | | ?????????????????????????????????????????????????? | | ?????????????????????????????????????????????????? | | ?????????????????????????????????????????????????? | | ?????????????????????????????????????????????????? | | ?????????????????????????????????????????????????? | | ?????????????????????????????????????????????????? | | ?????????????????????????????????????????????????? | | ?????????????????????????????????????????????????? | | ?????????????????????????????????????????????????? | | ?????????????????????????????????????????????????? | | ?????????????????????????????????????????????????? | | ?????????????????????????????????????????????????? | | ???????????? ??????????????#######???????????????? | | ???????????? ######???????#!!! "#???????????????? | | ??????????? #""#??????# "#???????????????? | | ??????????? ??????# "#???????????????? | | ???????????" #????## ""#???????????????? | | ???????????" #####" ""#???????????????? | | ????????????# ##" ""#????????????? "" | | ?????????????# #"" #??????????????" | | ????????????????# ###????????????" | | ???????????????????# # ##???????????" | | ???????????????????### @ #?????????? " | | ?????????????######## g % ##???????????" " | | ?????????????# !!"""" [ % ;#?????????# # | | ?????????????#! =! ###" % ;;;##???### # | | ?????????????#! #?## % "#####X# # | | ?????????????#! #"#?#" | | ?????????????# !"""""";### ##"# | | ?????????????####;######??# #### | | ????????????????##?????????# #?### * | | ????????????????????????????# #??### | | ?????????????????????????????# #???## | | ??????????????????????????????# #???## | | ???????????????????????????????# #???##" | | ????????????????????????????????# ????#""" | | ?????????????????????????????????? ??##" | | ??????????????????????????????????? ?#"" | | ?????????????????????????????????????#""" | | ????????????????????????????????????#""" | | ????????????????????????????????????#""" | | ????????????????????????????????????#"" | | ????????????????????????????????????#""" | | ????????????????????????????????????#"" | | ????????????????????????????????????##"" | | ?????????????????????????????????????#"""" | | ??????????????????????????????????????# | +----------------------------------------------------+ Best States ------------- Heat Dissipation 28 Energy Generation 14 Energy Capacity 265 Matter Stores 300 Matter Capacity 300 Sight Range 16 Terrain Scan Density 10 Armor Coverage 300 Core Shielding 20 Evasion (%) 50 Targeting Accuracy 6 Recoil Reduction 3 Item Schematics ----------------- None Robot Schematics ------------------ None Fabricated ------------ Nothing Alien Tech Used ----------------- None Achievements -------------- Hehehe Challenges ------------ None Game ------ Seed SignalStasisAutohacker Manual? 0 Play Time 00:32:44 Cumulative 464.1 hours Start 2023.10.28 @ 17:23:17 End 2023.10.28 @ 17:55:40 Sessions 1 Manual Loads 0 Difficulty Rogue Special Mode None Game No. 547 Rogue 460 Adventurer 87 Explorer 0 Win Type - Total 27 Types 8/0/15/1/1/0/2/0/0 Lore% 89 Gallery% 92 Achievement% 76 Wizard Run 0 Options --------- ASCII 0 Keyboard 1 Movement Numpad Keybinds 0 Fullscreen 1 Font 18/SmallcapsGlow Map View 76x50 Tactical HUD 1 Map Filters NONE Filters NONE Steam 1 RUN: f96170a2-46fa-4451-9b45-d3784089cd61